bitfinex/quotes_SOLUSD_20250612
["timestamp","ask_amount","ask_price","bid_price","bid_amount"]
[1749704916096,27.8316377,158.89,158.87,6.58]
[1749704916301,33.59117381,158.88,158.87,6.58]
[1749704916483,27.8316377,158.88,158.87,6.58]
[1749704916807,39.45627099,158.88,158.86,6.58]
[1749704917117,35.55747559,158.87,158.86,6.58]
[1749704918096,27.8316377,158.87,158.86,6.58]
[1749704920600,35.55747559,158.87,158.86,6.58]
[1749704920804,27.8316377,158.87,158.86,6.58]
[1749704921390,4.57964772,158.87,158.86,6.58]
[1749704921587,10.37246719,158.87,158.86,6.58]
[1749704921796,4.63409676,158.87,158.86,6.58]
[1749704923295,4.63409676,158.87,158.86,33.94]
[1749704923598,27.88608674,158.87,158.86,33.94]
[1749704924603,4.63409676,158.87,158.86,33.94]
[1749704926481,23.25198998,158.88,158.86,33.94]
[1749704926686,27.88527728,158.87,158.86,33.94]
[1749704927712,23.25198998,158.87,158.86,6.58]
[1749704928089,23.25198998,158.88,158.86,6.58]
[1749704928290,26.0,158.89,158.86,6.58]
[1749704928492,49.25198998,158.89,158.86,6.58]
[1749704929390,13.93497211,158.89,158.86,6.58]
[1749704929587,26.0,158.92,158.86,6.58]
[1749704929588,13.93497211,158.88,158.86,6.58]
[1749704930002,13.93497211,158.87,158.86,6.58]
[1749704930507,13.93497211,158.88,158.86,6.58]
[1749704930910,13.93497211,158.89,158.86,6.58]
[1749704931604,13.93497211,158.88,158.86,6.58]
[1749704932711,26.0,158.93,158.86,6.58]
[1749704932909,13.93497211,158.88,158.86,6.58]
[1749704933816,13.93497211,158.89,158.86,6.58]
[1749704934683,19.25223191,158.96,158.86,6.58]
[1749704934684,13.93497211,158.88,158.86,6.58]
[1749704936113,26.0,158.93,158.86,6.58]
[1749704936319,13.93497211,158.88,158.86,6.58]
[1749704937311,13.93497211,158.89,158.86,6.58]
[1749704937513,13.93497211,158.87,158.86,33.78]
[1749704937897,13.93497211,158.87,158.86,6.58]
[1749704941118,19.23497211,158.87,158.86,6.58]
[1749704942595,13.93497211,158.87,158.86,6.58]
[1749704943001,13.93497211,158.87,158.81,6.58]
[1749704943200,13.93497211,158.82,158.81,6.58]
[1749704943410,26.0,158.87,158.81,6.58]
[1749704943715,13.93497211,158.82,158.81,6.58]
[1749704944120,13.93497211,158.82,158.79,2.49693469]
[1749704944323,13.93497211,158.82,158.76,1.71720734]
[1749704944324,26.0,158.77,158.76,1.71720734]
[1749704944494,58.86894411,158.77,158.68,8.33333333]
[1749704944701,13.93497211,158.71,158.68,8.33333333]
[1749704944896,13.93497211,158.71,158.68,35.49333333]
[1749704945136,13.93497211,158.72,158.68,8.33333333]
[1749704945305,13.93497211,158.72,158.68,3.83333333]
[1749704945600,13.93497211,158.69,158.68,3.83333333]
[1749704946618,26.0,158.73,158.68,3.83333333]
[1749704946803,13.93497211,158.69,158.68,3.83333333]
[1749704947004,26.0,158.73,158.68,3.83333333]
[1749704947199,23.27957118,158.7,158.68,3.83333333]
[1749704947614,3.13322257,158.74,158.68,3.83333333]
[1749704947927,23.27957118,158.72,158.68,3.83333333]
[1749704948121,23.27957118,158.71,158.68,3.83333333]
[1749704949002,26.0,158.76,158.69,27.2]
[1749704949202,23.27957118,158.72,158.69,27.2]
[1749704949604,23.27957118,158.71,158.69,27.2]
[1749704950234,23.27957118,158.71,158.68,3.83333333]
[1749704950235,18.64964886,158.75,158.68,3.83333333]
[1749704950522,23.27957118,158.69,158.68,3.83333333]
[1749704950912,23.27957118,158.7,158.68,3.83333333]
[1749704951434,23.27957118,158.69,158.68,3.83333333]
[1749704952517,19.07613357,158.76,158.68,3.83333333]
[1749704952732,23.27957118,158.69,158.68,3.83333333]
[1749704955310,49.27957118,158.69,158.68,3.83333333]
[1749704957526,26.0,158.69,158.68,3.83333333]
[1749704957729,49.27957118,158.69,158.68,3.83333333]
[1749704958734,5.11030292,158.74,158.68,3.83333333]
[1749704959037,23.27957118,158.69,158.68,3.83333333]
[1749704959940,26.0,158.72,158.68,3.83333333]
[1749704960123,23.27957118,158.69,158.68,3.83333333]
[1749704962640,26.0,158.72,158.68,3.83333333]
[1749704962916,23.27957118,158.69,158.68,3.83333333]
[1749704964121,26.0,158.72,158.68,3.83333333]
[1749704964443,23.27957118,158.69,158.68,3.83333333]
[1749704966041,26.0,158.72,158.68,3.83333333]
[1749704966238,23.27957118,158.69,158.68,3.83333333]
[1749704967324,13.97178505,158.69,158.68,3.83333333]
[1749704967854,13.97178505,158.72,158.68,3.83333333]
[1749704968014,13.97178505,158.72,158.68,17.80511838]
[1749704968217,13.97178505,158.69,158.68,3.83333333]
[1749704969634,3.20619285,158.74,158.68,17.80511838]
[1749704969937,13.97178505,158.73,158.69,41.03178505]
[1749704970147,13.97178505,158.73,158.69,27.06]
[1749704970525,149.1,158.75,158.69,41.03178505]
[1749704970730,13.97178505,158.76,158.72,13.97178505]
[1749704970926,13.97178505,158.78,158.73,20.39178505]
[1749704971119,26.0,158.8,158.74,27.06]
[1749704971430,150.7344,158.83,158.74,27.06]
[1749704971637,13.97178505,158.77,158.74,27.06]
[1749704971836,13.97178505,158.78,158.74,27.06]
[1749704972569,13.97178505,158.78,158.74,41.03178505]
[1749704973055,153.94616997,158.83,158.75,13.97178505]
[1749704973228,23.25227271,158.79,158.75,23.25227271]
[1749704973557,179.94616997,158.83,158.75,23.25227271]
[1749704973558,5.3,158.82,158.75,23.25227271]
[1749704973739,23.25227271,158.79,158.75,23.25227271]
[1749704974923,23.25227271,158.79,158.74,27.06]
[1749704974924,152.31176997,158.83,158.74,27.06]
[1749704975126,152.31176997,158.83,158.75,33.42]
[1749704975127,23.25227271,158.76,158.75,33.42]
[1749704975354,23.25227271,158.76,158.72,23.25227271]
[1749704975552,23.25227271,158.76,158.75,33.42]
[1749704976059,23.25227271,158.76,158.72,23.25227271]
[1749704976354,23.25227271,158.77,158.73,33.26]
[1749704976543,23.25227271,158.77,158.74,33.26]
[1749704976944,152.31176997,158.83,158.74,33.26]
[1749704977148,23.25227271,158.78,158.75,33.26]
[1749704977661,23.25227271,158.76,158.75,6.28]
[1749704978238,41.90192157,158.76,158.68,3.83333333]
[1749704978448,0.28432314,158.75,158.68,30.83333333]
[1749704978760,23.25227271,158.71,158.68,30.83333333]
[1749704980734,1.5979,158.78,158.69,23.25227271]
[1749704980934,23.25227271,158.74,158.69,23.25227271]
[1749704982355,23.25227271,158.7,158.68,3.83333333]
[1749704982554,23.25227271,158.7,158.69,33.24]
[1749704982760,23.25227271,158.72,158.69,33.24]
[1749704983067,23.25227271,158.75,158.7,23.25227271]
[1749704983265,23.25227271,158.74,158.7,23.25227271]
[1749704983435,4.59923724,158.78,158.7,23.25227271]
[1749704983640,23.25227271,158.74,158.7,23.25227271]
[1749704984044,1.6557,158.82,158.72,23.25227271]
[1749704984247,23.25227271,158.77,158.73,26.98]
[1749704984451,23.25227271,158.77,158.73,50.23227271]
[1749704984651,23.25227271,158.75,158.73,26.98]
[1749704984867,23.25227271,158.8,158.73,26.98]
[1749704985161,23.25227271,158.75,158.73,26.98]
[1749704986169,23.25227271,158.8,158.73,26.98]
[1749704986170,23.25227271,158.74,158.73,26.98]
[1749704986370,23.25227271,158.74,158.69,6.28]
[1749704986569,23.25227271,158.7,158.69,6.28]
[1749704986957,6.60126032,158.74,158.69,6.28]
[1749704987268,23.25227271,158.7,158.69,6.28]
[1749704989449,65.58067899,158.7,158.69,6.28]
[1749704989768,46.50454542,158.7,158.69,6.28]
[1749704989957,23.25227271,158.7,158.69,6.28]
[1749704990771,4.61320881,158.72,158.69,6.28]
[1749704990946,23.25227271,158.7,158.69,6.28]
[1749704993362,13.97247299,158.7,158.69,6.28]
[1749704998448,149.1,158.75,158.69,6.28]
[1749704998669,13.97247299,158.7,158.69,6.28]
[1749705002376,13.97247299,158.72,158.69,6.28]
[1749705002683,13.97247299,158.7,158.69,6.28]
[1749705005974,149.1,158.75,158.69,6.28]
[1749705006179,13.97247299,158.7,158.69,6.28]
[1749705009391,149.1,158.75,158.69,6.28]
[1749705009563,13.97247299,158.71,158.69,6.28]
[1749705010210,13.97247299,158.7,158.69,6.28]
[1749705010569,13.97247299,158.74,158.69,20.25247299]
[1749705010871,13.97247299,158.77,158.73,13.97247299]
[1749705011068,13.97247299,158.76,158.74,26.72]
[1749705011885,1.5198,158.82,158.74,26.72]
[1749705012084,13.97247299,158.78,158.74,26.72]
[1749705012376,13.97247299,158.77,158.74,26.72]
[1749705012571,27.5198,158.82,158.74,26.72]
[1749705012779,5.3,158.79,158.75,13.97247299]
[1749705012973,13.97247299,158.8,158.75,13.97247299]
[1749705013193,3.21176997,158.83,158.76,13.97247299]
[1749705013500,13.97247299,158.81,158.77,13.97247299]
[1749705013677,13.97247299,158.81,158.78,26.74]
[1749705013877,13.97247299,158.8,158.79,6.14]
[1749705014194,13.97247299,158.83,158.79,6.14]
[1749705014574,149.1,158.84,158.79,20.11247299]
[1749705014967,13.97247299,158.83,158.79,20.11247299]
[1749705015902,149.1,158.84,158.79,6.14]
[1749705016083,13.97247299,158.83,158.79,20.11247299]
[1749705016395,13.97247299,158.83,158.79,6.14]
[1749705017998,3.07064345,158.86,158.79,6.14]
[1749705018207,13.97247299,158.83,158.79,6.14]
[1749705018499,13.97247299,158.83,158.79,20.11247299]
[1749705020184,13.97247299,158.83,158.79,6.14]
[1749705020387,13.97247299,158.83,158.79,20.11247299]
[1749705020891,2.32084515,158.87,158.79,20.11247299]
[1749705021096,13.97247299,158.83,158.79,20.11247299]
[1749705021482,13.97247299,158.84,158.8,13.97247299]
[1749705021679,13.97247299,158.85,158.81,13.97247299]
[1749705021886,149.1,158.89,158.82,40.63247299]
[1749705022100,26.0,158.86,158.82,40.63247299]
[1749705022589,39.97247299,158.86,158.82,40.63247299]
[1749705023175,3.1515838,158.9,158.83,13.97247299]
[1749705023390,13.97247299,158.87,158.83,13.97247299]
[1749705023594,26.0,158.9,158.83,13.97247299]
[1749705023906,13.97247299,158.87,158.83,13.97247299]
[1749705024603,13.97247299,158.88,158.83,13.97247299]
[1749705024803,3.08482394,158.93,158.86,13.97247299]
[1749705025106,1.5023,158.94,158.87,40.59247299]
[1749705025107,13.97247299,158.92,158.87,40.59247299]
[1749705025510,13.97247299,158.93,158.89,13.97247299]
[1749705025712,13.97247299,158.93,158.9,6.12]
[1749705025888,13.97247299,158.93,158.91,26.62]
[1749705028393,13.97247299,158.92,158.91,26.62]
[1749705028912,13.97247299,158.92,158.89,32.7]
[1749705029098,13.97247299,158.9,158.89,32.7]
[1749705031190,39.97247299,158.93,158.89,32.7]
[1749705031394,13.97247299,158.92,158.89,32.7]
[1749705031593,13.97247299,158.9,158.89,32.7]
[1749705032619,13.97247299,158.9,158.89,6.12]
[1749705033907,39.97247299,158.9,158.89,6.12]
[1749705034291,45.27247299,158.9,158.89,6.12]
[1749705036216,5.3,158.9,158.89,6.12]
[1749705036416,13.97247299,158.9,158.89,6.12]
[1749705037498,26.0,158.93,158.89,6.12]
[1749705037706,13.97247299,158.9,158.89,6.12]
[1749705038807,13.97247299,158.91,158.89,6.12]
[1749705040108,13.97247299,158.93,158.89,6.12]
[1749705040433,13.97247299,158.93,158.89,20.09247299]
[1749705041293,13.97247299,158.93,158.89,6.12]
[1749705041497,13.97247299,158.92,158.89,6.12]
[1749705041721,13.97247299,158.93,158.89,20.09247299]
[1749705042756,13.97247299,158.9,158.89,6.12]
[1749705043037,13.97247299,158.9,158.89,32.62]
[1749705043398,13.97247299,158.9,158.89,6.12]
[1749705046939,33.24494598,158.9,158.89,6.12]
[1749705047255,27.94494598,158.9,158.89,6.12]
[1749705047429,32.97955894,158.9,158.89,6.12]
[1749705047743,27.94494598,158.9,158.89,6.12]
[1749705048046,32.97955894,158.9,158.89,6.12]
[1749705048915,13.97247299,158.9,158.89,6.12]
[1749705051852,19.27247299,158.9,158.89,6.12]
[1749705052217,45.27247299,158.9,158.89,6.12]
[1749705054256,19.27247299,158.9,158.89,6.12]
[1749705054929,45.27247299,158.9,158.89,6.12]
[1749705055550,63.85317267,158.9,158.89,6.12]
[1749705056252,49.88069968,158.9,158.84,6.02]
[1749705056428,13.97247299,158.86,158.84,6.02]
[1749705057780,13.97247299,158.87,158.84,6.02]
[1749705058163,13.97247299,158.87,158.82,13.97247299]
[1749705058458,13.97247299,158.88,158.85,6.02]
[1749705059062,18.58606226,158.88,158.85,6.02]
[1749705059270,13.97247299,158.88,158.85,6.02]
[1749705059439,18.58702033,158.88,158.85,6.02]
[1749705059630,13.97247299,158.86,158.85,6.02]
[1749705061941,19.27247299,158.86,158.85,6.02]
[1749705062150,5.3,158.86,158.85,6.02]
[1749705062662,4.61454734,158.89,158.85,6.02]
[1749705062963,159.87343676,158.93,158.85,6.02]
[1749705062964,13.97247299,158.88,158.85,6.02]
[1749705063130,13.97247299,158.87,158.86,26.34]
[1749705064648,4.61680174,158.92,158.86,26.34]
[1749705064851,13.97247299,158.87,158.86,26.34]
[1749705066473,13.97247299,158.9,158.86,26.34]
[1749705066659,13.97247299,158.9,158.86,40.31247299]
[1749705066841,13.97247299,158.9,158.86,26.34]
[1749705067262,149.1,158.93,158.86,26.34]
[1749705067568,26.0,158.94,158.86,26.34]
[1749705067772,13.97247299,158.89,158.86,26.34]
[1749705068873,13.97247299,158.91,158.86,40.31247299]
[1749705069259,13.97247299,158.91,158.87,13.97247299]
[1749705069955,13.97247299,158.89,158.86,26.34]
[1749705071060,13.97247299,158.9,158.86,26.34]
[1749705071769,26.0,158.94,158.87,13.97247299]
[1749705071946,13.97247299,158.92,158.87,13.97247299]
[1749705072455,13.97247299,158.91,158.86,26.34]
[1749705072660,13.97247299,158.91,158.86,40.31247299]
[1749705072860,13.97247299,158.9,158.86,40.31247299]
[1749705073374,13.97247299,158.9,158.86,26.34]
[1749705073744,13.97247299,158.9,158.86,40.31247299]
[1749705073962,13.97247299,158.9,158.86,26.34]
[1749705074978,13.97247299,158.89,158.85,6.02]
[1749705075154,13.97247299,158.89,158.86,26.28]
[1749705077254,13.97247299,158.89,158.85,6.02]
[1749705077450,13.97247299,158.89,158.86,26.24]
[1749705079170,13.97247299,158.88,158.87,26.24]
[1749705081259,13.97247299,158.88,158.87,26.22]
[1749705084067,13.97247299,158.89,158.87,26.22]
[1749705086784,13.97247299,158.89,158.88,26.16]
[1749705087287,13.97247299,158.89,158.85,6.02]
[1749705087506,13.97247299,158.86,158.83,6.2339]
[1749705087667,13.97247299,158.85,158.84,32.04]
[1749705088487,13.97247299,158.86,158.84,32.04]
[1749705089188,13.97247299,158.87,158.84,32.04]
[1749705089371,26.0,158.9,158.84,32.04]
[1749705089693,13.97247299,158.87,158.84,32.04]
[1749705091408,13.97247299,158.87,158.85,26.14]
[1749705093185,13.97247299,158.86,158.85,26.14]
[1749705094283,13.97247299,158.86,158.85,26.12]
[1749705094701,27.5996,158.91,158.85,26.12]
[1749705094998,13.97247299,158.89,158.85,40.09247299]
[1749705095196,13.97247299,158.89,158.85,26.12]
[1749705095706,13.97247299,158.88,158.85,26.12]
[1749705097803,13.97247299,158.86,158.84,5.88]
[1749705098004,13.97247299,158.85,158.84,5.88]
[1749705098794,41.60497299,158.88,158.84,5.88]
[1749705099102,13.97247299,158.85,158.84,5.88]
[1749705116020,15.60497299,158.88,158.84,5.88]
[1749705116198,13.97247299,158.85,158.84,5.88]
[1749705124803,13.97247299,158.88,158.84,5.88]
[1749705125121,13.97247299,158.85,158.84,5.88]
[1749705129531,13.97247299,158.88,158.84,5.88]
[1749705129832,13.97247299,158.85,158.84,5.88]
[1749705130417,13.97247299,158.85,158.82,26.12]
[1749705130619,13.97247299,158.84,158.83,5.68]
[1749705132722,13.97247299,158.85,158.83,5.68]
[1749705133811,26.0,158.89,158.83,5.68]
[1749705134013,13.97247299,158.88,158.84,13.97247299]
[1749705134229,6.9427482,158.92,158.85,26.0]
[1749705134542,13.97247299,158.88,158.85,26.0]
[1749705135530,27.5049,158.93,158.85,39.97247299]
[1749705135835,13.97247299,158.9,158.85,26.0]
[1749705136050,13.97247299,158.9,158.85,39.97247299]
[1749705136447,149.1,158.95,158.88,13.97247299]
[1749705136606,13.97247299,158.92,158.89,26.0]
[1749705137530,4.62490348,158.94,158.89,39.97247299]
[1749705137756,1.5025,158.97,158.89,26.0]
[1749705138034,13.97247299,158.96,158.92,13.97247299]
[1749705138224,149.1,159.0,158.93,45.65247299]
[1749705138225,4.6250872,158.97,158.93,45.65247299]
[1749705138436,13.97247299,158.97,158.93,45.65247299]
[1749705138635,4.6250872,158.98,158.93,45.65247299]
[1749705138636,13.97247299,158.98,158.94,13.97247299]
[1749705138949,13.97247299,158.95,158.93,31.68]
[1749705139236,4.62167891,158.99,158.93,31.68]
[1749705139426,13.97247299,158.95,158.93,31.68]
[1749705142338,149.1,159.0,158.93,31.68]
[1749705142522,13.97247299,158.97,158.93,31.68]
[1749705142719,13.97247299,158.95,158.93,31.68]
[1749705143137,13.97247299,158.94,158.93,31.68]
[1749705144636,6.95393958,158.99,158.93,31.68]
[1749705144836,13.97247299,158.94,158.93,31.68]
[1749705145633,13.97247299,158.95,158.93,31.68]
[1749705146223,26.0,158.97,158.93,31.68]
[1749705146433,13.97247299,158.94,158.93,5.68]
[1749705150553,14.25679613,158.94,158.93,5.68]
[1749705151633,19.55679613,158.94,158.93,5.68]
[1749705152146,24.1935855,158.94,158.93,5.68]
[1749705152455,19.27247299,158.94,158.93,5.68]
[1749705153545,13.97247299,158.94,158.93,5.68]
[1749705156953,26.0,158.97,158.93,5.68]
[1749705157150,13.97247299,158.95,158.93,5.68]
[1749705158339,13.97247299,158.95,158.94,25.98]
[1749705158754,26.0,158.97,158.94,25.98]
[1749705158956,13.97247299,158.95,158.94,25.98]
[1749705161577,26.0,158.97,158.94,25.98]
[1749705161770,13.97247299,158.95,158.94,25.98]
[1749705164266,26.0,158.97,158.94,25.98]
[1749705164476,1.537,159.03,158.94,0.14216157]
[1749705164774,39.97247299,158.98,158.95,25.98]
[1749705164978,26.0,158.98,158.95,25.98]
[1749705165187,39.97247299,158.98,158.95,25.98]
[1749705166586,26.0,158.98,158.95,25.98]
[1749705166971,13.97247299,158.98,158.95,25.98]
[1749705168188,13.97247299,158.97,158.95,25.98]
[1749705169762,13.97247299,158.98,158.95,25.98]
[1749705169963,13.97247299,158.97,158.95,25.98]
[1749705171988,13.97247299,158.98,158.95,25.98]
[1749705172779,13.97247299,158.98,158.96,25.98]
[1749705174087,13.97247299,158.97,158.93,5.68]
[1749705174309,13.97247299,158.94,158.93,31.66]
[1749705174476,13.97247299,158.94,158.93,5.68]
[1749705175378,39.97247299,158.94,158.93,5.68]
[1749705177275,13.97247299,158.94,158.93,5.68]
[1749705177599,39.97247299,158.94,158.93,5.68]
[1749705177782,13.97247299,158.94,158.93,5.68]
[1749705178377,39.97247299,158.94,158.93,5.68]
[1749705178886,13.97247299,158.94,158.93,5.68]
[1749705180694,39.97247299,158.94,158.93,5.68]
[1749705180904,13.97247299,158.94,158.93,5.68]
[1749705181080,39.97247299,158.94,158.93,5.68]
[1749705181287,32.90644499,158.94,158.93,5.68]
[1749705181689,37.5290712,158.94,158.93,5.68]
[1749705181887,42.8290712,158.94,158.93,5.68]
[1749705182197,49.8950992,158.94,158.93,5.68]
[1749705182498,23.8950992,158.94,158.93,5.68]
[1749705182684,19.27247299,158.94,158.93,5.68]
[1749705182881,26.0,158.91,158.89,5.68]
[1749705183086,27.94494598,158.9,158.89,5.68]
[1749705183395,13.97247299,158.9,158.89,5.68]
[1749705184479,44.933972,158.92,158.89,5.68]
[1749705184680,13.97247299,158.9,158.89,5.68]
[1749705185794,27.94494598,158.9,158.89,5.68]
[1749705186902,33.24494598,158.9,158.89,5.68]
[1749705187301,19.27247299,158.9,158.89,5.68]
[1749705187791,13.97247299,158.9,158.89,5.68]
[1749705191410,26.0,158.91,158.89,5.68]
[1749705191713,13.97247299,158.9,158.89,5.68]
[1749705194106,39.97247299,158.9,158.89,5.68]
[1749705201593,13.97247299,158.9,158.89,5.68]
[1749705213127,13.97247299,158.91,158.89,5.68]
[1749705213507,26.0,158.92,158.89,5.68]
[1749705213731,26.0,158.9,158.89,5.68]
[1749705214929,39.97247299,158.9,158.89,5.68]
[1749705216814,26.0,158.9,158.89,5.68]
[1749705228333,44.60709383,158.94,158.89,19.65247299]
[1749705228533,39.97247299,158.94,158.89,45.61247299]
[1749705228738,13.97247299,158.93,158.89,45.61247299]
[1749705229125,13.97247299,158.93,158.89,31.64]
[1749705229627,13.97247299,158.92,158.89,31.64]
[1749705233823,13.97247299,158.93,158.89,31.64]
[1749705235429,13.97247299,158.92,158.89,31.64]
[1749705236467,39.97247299,158.91,158.89,5.68]
[1749705237131,13.97247299,158.9,158.89,5.68]
[1749705240346,4.63131543,158.92,158.89,19.65247299]
[1749705240549,13.97247299,158.94,158.89,19.65247299]
[1749705240725,39.97247299,158.93,158.89,19.65247299]
[1749705240921,39.97247299,158.92,158.89,5.68]
[1749705242534,13.97247299,158.9,158.89,5.68]
[1749705242836,26.0,158.92,158.89,19.65247299]
[1749705243155,26.0,158.91,158.89,19.65247299]
[1749705243528,26.0,158.91,158.89,5.68]
[1749705244042,26.0,158.91,158.89,19.65247299]
[1749705244428,26.0,158.92,158.9,13.97247299]
[1749705244629,26.0,158.92,158.89,19.65247299]
[1749705245350,26.0,158.92,158.89,5.68]
[1749705245553,39.97247299,158.92,158.89,5.68]
[1749705245953,26.0,158.92,158.89,5.68]
[1749705246154,39.97247299,158.92,158.89,5.68]
[1749705247653,26.0,158.92,158.89,5.68]
[1749705248033,26.0,158.92,158.89,19.65247299]
[1749705248239,26.0,158.91,158.89,19.65247299]
[1749705248956,149.1,158.95,158.89,5.68]
[1749705248957,39.97247299,158.92,158.89,5.68]
[1749705252258,13.97247299,158.91,158.89,5.68]
[1749705254148,39.97247299,158.92,158.89,5.68]
[1749705255851,13.97247299,158.91,158.89,5.68]
[1749705256961,26.0,158.91,158.89,5.68]
[1749705257948,26.0,158.9,158.89,5.68]
[1749705258169,4.63550406,158.94,158.89,19.79463456]
[1749705258354,13.97247299,158.96,158.91,13.97247299]
[1749705258556,26.0,158.92,158.91,39.91247299]
[1749705258760,7.37640217,159.0,158.91,39.91247299]
[1749705258957,13.97247299,158.98,158.94,13.97247299]
[1749705259171,26.0,158.95,158.94,39.91247299]
[1749705259469,26.0,158.95,158.94,25.94]
[1749705259864,26.0,158.95,158.93,13.97247299]
[1749705260070,26.0,158.94,158.93,39.91247299]
[1749705260255,13.97247299,158.97,158.93,39.91247299]
[1749705260764,26.0,158.94,158.93,39.91247299]
[1749705266876,26.0,158.96,158.93,40.05463456]
[1749705267078,149.1,159.01,158.95,13.97247299]
[1749705267377,26.0,158.97,158.96,25.94]
[1749705267552,13.97247299,159.0,158.96,39.91247299]
[1749705267754,26.0,158.99,158.97,13.97247299]
[1749705267991,26.0,158.98,158.97,13.97247299]
[1749705268160,26.0,158.98,158.97,19.63247299]
[1749705269057,26.0,158.98,158.97,5.66]
[1749705270379,13.97247299,158.99,158.97,5.66]
[1749705270752,13.97247299,158.99,158.97,31.58]
[1749705272785,39.97247299,158.99,158.97,31.58]
[1749705274270,13.97247299,158.98,158.97,31.58]
[1749705274686,39.97247299,158.99,158.97,31.58]
[1749705276184,39.97247299,158.99,158.97,5.66]
[1749705276185,13.97247299,158.99,158.97,5.66]
[1749705279675,13.97247299,159.0,158.97,5.66]
[1749705280074,13.97247299,158.99,158.97,5.66]
[1749705280782,13.97247299,159.0,158.97,5.66]
[1749705285493,13.97247299,158.98,158.97,5.66]
[1749705285669,26.0,159.01,158.97,5.66]
[1749705285670,5.3,158.99,158.97,5.66]
[1749705285865,13.97247299,158.98,158.97,5.66]
[1749705287772,13.97247299,158.99,158.97,5.66]
[1749705287972,26.0,159.01,158.97,5.66]
[1749705287973,13.97247299,159.0,158.97,5.66]
[1749705289292,13.97247299,158.99,158.97,5.66]
[1749705290690,13.97247299,158.98,158.97,5.66]
[1749705294066,13.97247299,158.99,158.97,5.66]
[1749705294269,13.97247299,159.0,158.97,31.58]
[1749705295294,13.97247299,158.99,158.97,31.58]
[1749705297970,26.0,159.01,158.97,31.58]
[1749705297971,13.97247299,159.0,158.97,31.58]
[1749705300175,26.0,159.02,158.97,45.55247299]
[1749705300372,1.62,159.04,158.97,45.55247299]
[1749705300571,13.97247299,159.02,158.97,45.55247299]
[1749705300770,13.97247299,159.01,158.97,31.58]
[1749705300990,13.97247299,159.01,158.97,45.55247299]
[1749705301376,13.97247299,159.0,158.97,31.58]
[1749705301910,13.97247299,159.01,158.97,31.58]
[1749705303899,13.97247299,159.02,158.97,45.55247299]
[1749705305683,13.97247299,159.01,158.97,45.55247299]
[1749705305896,11.62593313,159.03,158.97,45.55247299]
[1749705306096,13.97247299,159.01,158.97,45.55247299]
[1749705310109,13.97247299,159.02,158.97,45.55247299]
[1749705311810,13.97247299,159.01,158.97,45.55247299]
[1749705312692,13.97247299,159.01,158.97,31.58]
[1749705314785,6.96826765,159.03,158.97,31.58]
[1749705314989,13.97247299,159.01,158.97,45.55247299]
[1749705317097,13.97247299,158.99,158.97,5.66]
[1749705317504,13.97247299,159.0,158.97,31.56]
[1749705317914,13.97247299,159.01,158.97,31.56]
[1749705319215,8.90594842,159.01,158.97,31.56]
[1749705320920,8.90594842,159.01,158.97,5.66]
[1749705321122,8.90594842,159.01,158.98,25.9]
[1749705326605,8.90594842,159.0,158.98,25.9]
[1749705330827,8.90594842,159.01,158.98,25.9]
[1749705332131,8.90594842,159.01,158.99,5.64]
[1749705333911,26.0,159.0,158.99,5.64]
[1749705336211,34.90594842,159.03,158.99,14.54594842]
[1749705336413,34.90594842,159.03,159.0,25.88]
[1749705337332,8.90594842,159.01,159.0,25.88]
[1749705338747,8.90594842,159.02,159.0,25.88]
[1749705341016,8.90594842,159.01,159.0,25.88]
[1749705341225,13.55146034,159.01,159.0,25.88]
[1749705341538,13.55146034,159.01,158.99,5.64]
[1749705341721,8.90594842,159.01,158.99,5.64]
[1749705342420,8.90594842,159.0,158.99,5.64]
[1749705342728,13.55241044,159.0,158.99,5.64]